Cogmind - Beta 13 @@@ ROGUE MODE // 2024.07.09 @ 10:39:27 Player: Wherf Result: Destroyed by S-27 Virus with Autogun Performance ------------- Evolutions (4) 2000 Regions Visited (7) 1400 Robots Destroyed (86) 430 Value Destroyed (2702) 2702 Prototype IDs (8) 160 Alien Tech Used (0) 0 Bonus (-64) -64 TOTAL SCORE: 6628 Bonus ------- High Alert Combat Kills 94 Friendly Fire -158 Cogmind --------- Core Integrity 0/850 Matter 243/300 Energy 100/100 System Corruption 1% Temperature Cool (0) Movement Core (50) Location -6/Factory Parts ------- > --- POWER (2) -------- (None) > --- PROPULSION (4) --- (None) > --- UTILITY (5) ------ (None) > --- WEAPON (4) ------- (None) > --- INVENTORY (5) ---- Light Angular Momentum Engine Large Matter Pod (150) EM Disruption Field Peak State ------------ > --- POWER ------------ Cooled Fission Core Antimatter Reactor > --- PROPULSION ------- Heavy Treads Heavy Treads > --- UTILITY ---------- Advanced Heat Sink High-capacity Storage Unit Hardened Light Armor Plating Hardened Light Armor Plating Reactive Plating > --- WEAPON ----------- Heavy Beamcaster Heavy Beamcaster Heavy Battle Rifle Slug Cannon > --- INVENTORY -------- Light Deuterium Engine Light Fission Core Wheel Wheel Wheel Compact Wheel Compact Wheel Compact Wheel Large Matter Pod Experimental Targeting Computer Improved Particle Charger Reaction Control System Hardened Light Armor Plating EM Disruption Field Slug Cannon Power Maul [Rating: 75] Favorites ----------- Power Cooled Fission Core Engine Improved Deuterium Engine Power Core Cooled Fission Core Reactor Antimatter Reactor Propulsion Heavy Treads Treads Heavy Treads Leg Improved Carbon-fiber Leg Wheel Compact Wheel Hover Unit Improved Gravmag System Flight Unit VTOL Module Utility Hardened Light Armor Plating Device Advanced Heat Sink Storage High-capacity Storage Unit Processor Signal Interpreter Hackware Improved Hacking Suite Protection Hardened Light Armor Plating Weapon Heavy Battle Rifle Energy Gun Heavy Beamcaster Energy Cannon EM Pulse Cannon Ballistic Gun Heavy Battle Rifle Ballistic Cannon Slug Cannon Launcher Heavy Missile Launcher Impact Weapon Power Maul Slashing Weapon Centrium Greatsword Build | -11 -10 -9 -8 -7 -6 -6 -6 ------- Run | Yrd Mat Mat Mat Fac Fac Was Fac Slots Evolved 8 | . . 2 2 2 2 . . Power 1 | . . . . 1 . . . Propulsion 2 | . . . 1 . 1 . . Utility 3 | . . 2 . 1 . . . Weapon 2 | . . . 1 . 1 . . Parts Attached 121 | 7 6 12 6 33 4 18 35 Power 17 | 1 1 1 1 6 1 2 4 Engine 6 | 1 . 1 . 2 . . 2 Core 10 | . 1 . 1 4 1 2 1 Reactor 1 | . . . . . . . 1 Propulsion 26 | 2 2 3 1 4 2 3 9 Treads 3 | . . . . . . 3 . Leg 1 | . . . . . 1 . . Wheel 16 | 2 . 3 . 3 . . 8 Hover 4 | . 2 . . . 1 . 1 Flight 2 | . . . 1 1 . . . Utility 41 | 2 3 3 1 14 1 4 13 Device 18 | 1 2 1 1 4 . 1 8 Storage 2 | 1 . . . . . . 1 Processor 3 | . 1 . . 1 . . 1 Hackware 2 | . . . . 1 1 . . Protection 16 | . . 2 . 8 . 3 3 Artifact . | . . . . . . . . Weapon 37 | 2 . 5 3 9 . 9 9 Energy Gun 11 | 1 . 1 1 4 . 2 2 Energy Cannon 4 | . . . 1 1 . . 2 Ballistic Gun 8 | 1 . 4 1 . . 2 . Ballistic Cannon 7 | . . . . 1 . 4 2 Launcher 1 | . . . . . . . 1 Special Weapon . | . . . . . . . . Impact Weapon 5 | . . . . 3 . . 2 Slashing Weapon 1 | . . . . . . 1 . Piercing Weapon . | . . . . . . . . Special Melee Weapon . | . . . . . . . . Unidentified Prototypes 6 | . . 1 1 1 . 2 1 Parts Lost 48 | . . 1 . 23 . . 24 Power 9 | . . 1 . 4 . . 4 Propulsion 12 | . . . . 6 . . 6 Utility 14 | . . . . 7 . . 7 Weapon 13 | . . . . 6 . . 7 Highest Loss Streak 16 | . . 1 . 16 . . 15 To Critical Strikes . | . . . . . . . . Average Slot Usage (%) 83 | . 99 97 98 83 27 69 81 Engine 2 | . 6 6 2 5 . . . Core 6 | . 7 4 6 6 2 8 6 Reactor 1 | . . . . . . . 3 Treads 4 | . . . . . . 7 9 Wheel 9 | . 14 21 18 14 . . 4 Hover 1 | . 13 . . . 3 4 . Flight 1 | . . . 7 . 6 . . Device 11 | . 19 21 26 10 . . 8 Processor 2 | . 8 11 . 3 . . . Hackware 3 | . . . . . 12 12 2 Protection 13 | . . 10 9 18 . 13 15 Energy Gun 7 | . 14 10 5 8 . 5 6 Ballistic Gun 9 | . 14 10 18 6 . 7 8 Ballistic Cannon 2 | . . . . 2 . 2 5 Naked Turns 78 | . . . . 29 . . 49 Heaviest Build 114 | 15 15 18 25 44 7 54 114 Greatest Support 140 | 32 32 32 28 38 10 140 140 Greatest Overweight (x) 6 | . . . . 3 . . 6 Average Overweight (x) . | . . . . 1 . . . Largest Inventory Capacity 20 | 8 8 5 5 5 5 5 20 Average Capacity 7 | 6 5 5 5 5 5 5 11 Most Carried 18 | . 5 5 5 5 4 5 18 Average Carried 5 | . 3 3 4 4 3 3 7 Final Capacity 8 | 8 5 5 5 5 5 5 5 Final Carried 5 | . 5 5 5 4 3 5 3 Class Distribution -------------------- 49% | Scavenger-Tank 15% | Scavenger-Mutant 10% | Mutant 8% | Derelict-Tank 8% | Hacker-Mutant 7% | Hacker-Tank Dominant Class ---------------- Mutant | -10/Materials Scavenger-Mutant | -9/Materials Scavenger-Tank | -8/Materials Scavenger-Tank | -7/Factory Hacker-Mutant | -6/Factory Hacker-Tank | -6/Waste Scavenger-Tank | -6/Factory Resources | -11 -10 -9 -8 -7 -6 -6 -6 ----------- Run | Yrd Mat Mat Mat Fac Fac Was Fac Matter Collected 2498 | 252 114 347 256 476 . 325 728 Remotely . | . . . . . . . . Salvage Created 3644 | 27 205 206 351 966 . 521 1368 Parts 195 | 2 18 8 17 62 . 5 83 Haulers Intercepted 3 | . 1 . . 2 . . . Recyclers Shooed 2 | . . . . . . . 2 Parts Field Recycled . | . . . . . . . . Retrieved Matter . | . . . . . . . . Parts Self-Destructed . | . . . . . . . . Prevented . | . . . . . . . . Kills | -11 -10 -9 -8 -7 -6 -6 -6 ------- Run | Yrd Mat Mat Mat Fac Fac Was Fac Combat Hostiles Destroyed 57 | . 5 4 12 13 . 1 22 Melee 1 | . . . . 1 . . . Guns 30 | . 5 4 6 5 . 1 9 Cannons 15 | . . . 4 3 . . 8 AOE 8 | . . . 2 2 . . 4 Classes Destroyed 16 | 1 4 1 . 5 . 1 4 Worker 10 | . . . . 7 . . 3 Builder 6 | . . . . 2 . . 4 Tunneler 2 | 1 . . . . . . 1 Hauler 3 | . 1 . . 2 . . . Recycler 4 | . . . . 1 . . 3 Watcher 4 | . 1 . 1 2 . . . Swarmer 15 | . 3 . 8 . . . 4 Grunt 21 | . 2 2 2 7 . . 8 Brawler 1 | . . . . . . . 1 Duelist 2 | . . . . 1 . . 1 Sentry 6 | . . 2 2 2 . . . Specialist 2 | . . . . . . . 2 Hunter 3 | . . . . . . . 3 Programmer 5 | . . . . 3 . . 2 Heavy 1 | . . . . . . . 1 Compactor 1 | . . . . . . 1 . Best Kill Streak 9 | 1 3 3 7 9 . 1 8 Combat Bots Only 7 | . 3 3 7 3 . 1 6 Max Kills in Single Turn 5 | 1 1 2 1 5 . 1 4 Gunslinging 1 | . . 1 . . . . . Exploded 3 | . . . 1 1 . . 3 Melee 1 | . . . . 1 . . . Uniques/NPCs Destroyed . | . . . . . . . . Combat | -11 -10 -9 -8 -7 -6 -6 -6 -------- Run | Yrd Mat Mat Mat Fac Fac Was Fac Hostile Shots Fired 830 | . 20 31 49 330 . . 400 Missed 248 | . 5 8 15 106 . . 114 Damage Taken 8381 | . 176 326 299 2963 . . 4617 Core 1684 | . 40 99 59 626 . . 860 Absorbed by Shields 131 | . . . . 91 . . 40 Reduced by Siege Mode 50 | . . . . . . . 50 Redirected to Shielding 140 | . . . . 51 . . 89 Ignored by Resistances 307 | . . . . . . . 307 Regen/Repaired (Parts) 40 | . . . . . . . 40 Core Remaining (%) 71 | 100 84 75 89 10 . . . Volleys Fired 173 | 1 11 13 21 52 . 12 63 Largest 4 | 2 2 2 3 3 . 4 4 Hottest 249 | 70 70 79 109 169 . 228 249 Shots Fired 489 | 2 22 26 60 142 . 48 189 Gun 384 | 2 22 26 42 110 . 45 137 Cannon 100 | . . . 18 32 . 3 47 Launcher 5 | . . . . . . . 5 Special . | . . . . . . . . Kinetic 254 | 1 11 13 42 67 . 27 93 Thermal 169 | 1 11 13 . 32 . 21 91 Explosive 5 | . . . . . . . 5 Electromagnetic 61 | . . . 18 43 . . . Robot Hit Streak 11 | 1 8 7 9 11 . 6 8 Robot Miss Streak 7 | . 2 1 4 7 . 4 6 Penetration Max . | . . . . . . . . Secondary Targets 4 | . 2 1 . . . . 1 Max Gunslinging Chain 1 | . 1 1 . . . . 1 Shots Hit Robots 293 | 1 15 21 31 98 . 24 103 Core Hits 149 | 1 11 6 18 44 . 5 64 Critical Kills 4 | . . . 1 . . 1 2 Critical Parts Destroyed 4 | . . . . 3 . . 1 Critical Strikes 23 | . 1 1 2 7 . 1 11 Burn 13 | . 1 1 . 3 . . 8 Destroy 5 | . . . 1 . . 1 3 Blast 1 | . . . . 1 . . . Corrupt 1 | . . . 1 . . . . Smash 3 | . . . . 3 . . . Melee Attacks 12 | . . . . 12 . . . Impact 12 | . . . . 12 . . . Slashing . | . . . . . . . . Piercing . | . . . . . . . . Sneak Attacks . | . . . . . . . . Combat Hostiles . | . . . . . . . . Follow-up Attacks 3 | . . . . 3 . . . Damage Inflicted 7515 | 12 210 301 659 2406 . 652 3275 Guns 4406 | 12 210 301 276 1127 . 624 1856 Cannons 1307 | . . . 267 388 . 28 624 Explosions 1397 | . . . 116 519 . . 762 Melee 372 | . . . . 372 . . . Ramming 33 | . . . . . . . 33 Kinetic 2863 | . 112 155 276 818 . 378 1124 Thermal 2968 | 12 98 146 116 966 . 274 1356 Explosive 762 | . . . . . . . 762 Electromagnetic 517 | . . . 267 250 . . . Impact 372 | . . . . 372 . . . Slashing . | . . . . . . . . Piercing . | . . . . . . . . Highest Corruption 2 | . . . 2 2 . . 1 Average Corruption 1 | . . . 2 1 . . 1 Corruption Purged . | . . . . . . . . Corruption Blocked . | . . . . . . . . Effects 23 | . . . 10 9 . . 4 Message Errors 4 | . . . 2 1 . . 1 Matter Fused 7 | . . . 3 2 . . 2 Heat Flow Errors 2 | . . . 1 1 . . . Energy Discharges 7 | . . . 3 3 . . 1 Data Loss (minor) 3 | . . . 1 2 . . . Overload Shots . | . . . . . . . . Overflow Damage 231 | . . . 7 188 . . 36 Projectiles 26 | . . . 7 2 . . 17 Explosions 64 | . . . . 45 . . 19 Melee 141 | . . . . 141 . . . Knockbacks 9 | . . . . 6 . . 3 Impact 2 | . . . . 2 . . . Kinetic 6 | . . . . 3 . . 3 Secondary 1 | . . . . 1 . . . Self-Inflicted Damage 176 | . . . . 114 . . 62 Shots 3 | . . . . 2 . . 1 Rammed 6 | . . . . . . . 6 Targets Rammed 6 | . . . . . . . 6 Kicked . | . . . . . . . . Crushed . | . . . . . . . . Highest Temperature 551 | 9 114 40 258 551 . 342 533 Average Temperature 132 | 6 43 15 54 140 . 132 161 Received Heat Transfer 1954 | . 69 141 54 903 . . 787 Effects 19 | . . . . 10 . . 9 Shutdowns 4 | . . . . 3 . . 1 Energy Bleed 4 | . . . . 2 . . 2 Interference 4 | . . . . 1 . . 3 Matter Decay 2 | . . . . . . . 2 Short Circuit 1 | . . . . 1 . . . Damage (minor) 1 | . . . . 1 . . . Damage (major) 2 | . . . . 2 . . . Damage (core) 1 | . . . . . . . 1 Siege Activations 2 | . . . . . . 1 1 Total Turns 32 | . . . . . . 1 31 Longest Duration 31 | . . . . . . 1 31 Robots Corrupted 1 | . . . . 1 . . . Combat Hostiles 1 | . . . . 1 . . . Parts Fried 3 | . . . . 3 . . . Impact Corruptions 5 | . . . . 5 . . . Robots Melted 1 | . . . . . . . 1 Combat Hostiles 1 | . . . . . . . 1 Parts Melted 13 | . . 5 . 5 . . 3 Heat Transferred 5608 | 37 370 481 200 1423 . 444 2653 Parts Sabotaged . | . . . . . . . . Parts Stolen . | . . . . . . . . Parts Stripped . | . . . . . . . . Power Chain Reactions 4 | . . . 2 2 . . . Alert | -11 -10 -9 -8 -7 -6 -6 -6 ------- Run | Yrd Mat Mat Mat Fac Fac Was Fac Peak Influence 578 | 5 75 160 437 335 163 57 578 Initial 163 | . 3 29 67 114 163 57 . Average 119 | 1 42 98 288 130 163 25 126 Maximum Alert Level 2 | . . . 2 1 . . 2 Low Security (%) 79 | 100 100 100 18 80 100 100 79 Level 1 12 | . . . 48 19 . . 8 Level 2 7 | . . . 32 . . . 12 Level 3 . | . . . . . . . . Level 4 . | . . . . . . . . Level 5 . | . . . . . . . . High Security . | . . . . . . . . Max Security . | . . . . . . . . Squads Dispatched 10 | . . . . 3 . . 7 Investigation . | . . . . . . . . Extermination 4 | . . . . 2 . . 2 Reinforcement 5 | . . . . . . . 5 Assault . | . . . . . . . . Garrison 1 | . . . . 1 . . . Intercept . | . . . . . . . . Searches Triggered . | . . . . . . . . Construction Impeded . | . . . . . . . . Haulers Reinforced 1 | . . . . . . . 1 Active Scanning Responses . | . . . . . . . . Cargo Convoy Interrupts . | . . . . . . . . Stealth | -11 -10 -9 -8 -7 -6 -6 -6 --------- Run | Yrd Mat Mat Mat Fac Fac Was Fac Distress Signals 4 | . 1 1 . . . . 2 Communications Jammed . | . . . . . . . . Distress Signals . | . . . . . . . . Times Spotted 106 | . 7 5 15 30 . 3 46 Peak Tracking Total 9 | . 3 3 7 7 . 1 9 Tactical Retreats 13 | . . . . 4 . 1 8 Traps | -11 -10 -9 -8 -7 -6 -6 -6 ------- Run | Yrd Mat Mat Mat Fac Fac Was Fac Traps Triggered 4 | . . 1 1 . 1 . 1 Indirectly . | . . . . . . . . Trap Hack Attempts . | . . . . . . . . Triggered . | . . . . . . . . Disarmed . | . . . . . . . . Reprogrammed . | . . . . . . . . Reused . | . . . . . . . . Traps Extracted . | . . . . . . . . Installed . | . . . . . . . . Triggered . | . . . . . . . . Machines | -11 -10 -9 -8 -7 -6 -6 -6 ---------- Run | Yrd Mat Mat Mat Fac Fac Was Fac Machines Disabled 14 | . . . 2 9 . . 3 Max in Single Turn 7 | . . . 1 7 . . 2 Machines Repaired . | . . . . . . . . Machines Dismantled . | . . . . . . . . Machines Sabotaged . | . . . . . . . . Overloaded Fab Kills . | . . . . . . . . Hacking | -11 -10 -9 -8 -7 -6 -6 -6 --------- Run | Yrd Mat Mat Mat Fac Fac Was Fac Machines Accessed 21 | . 4 3 3 3 . . 8 Terminals 14 | . 4 3 2 1 . . 4 Fabricators 4 | . . . . 2 . . 2 Repair Stations 2 | . . . . . . . 2 Recycling Units . | . . . . . . . . Scanalyzers 1 | . . . 1 . . . . Garrison Access . | . . . . . . . . Total Hacks 57 | . 16 5 10 8 . . 18 Successful 30 | . 10 2 6 2 . . 10 Failed 27 | . 6 3 4 6 . . 8 Catastrophic 2 | . . . . . . . 2 Database Lockouts . | . . . . . . . . Manual 17 | . 6 5 3 . . . 3 Terminals 41 | . 16 5 5 3 . . 12 Fabricators 7 | . . . . 5 . . 2 Repair Stations 4 | . . . . . . . 4 Recycling Units . | . . . . . . . . Scanalyzers 5 | . . . 5 . . . . Garrison Access . | . . . . . . . . Terminal Hacks 15 | . 6 . 1 1 . . 7 Prototype ID Bank 1 | . 1 . . . . . . Open DSF 1 | . . . . . . . 1 Branch Access Points 1 | . 1 . . . . . . Alert Level 5 | . 1 . . 1 . . 3 Unreport Threat 3 | . . . . . . . 3 Locate Traps 1 | . 1 . . . . . . Transport Status 1 | . 1 . . . . . . Zone Layout 2 | . 1 . 1 . . . . Fabricator Hacks 2 | . . . . 1 . . 1 Load Schematic 1 | . . . . 1 . . . Build 1 | . . . . . . . 1 Repair Station Hacks 2 | . . . . . . . 2 Scan Component 1 | . . . . . . . 1 Repair 1 | . . . . . . . 1 Recycling Unit Hacks . | . . . . . . . . Scanalyzer 4 | . . . 4 . . . . Insert Component 2 | . . . 2 . . . . Analyze 2 | . . . 2 . . . . Garrison Access Hacks . | . . . . . . . . Unauthorized Hacks 7 | . 4 2 1 . . . . Terminals 7 | . 4 2 1 . . . . Botnet 7 | . 4 2 1 . . . . Fabricators . | . . . . . . . . Repair Stations . | . . . . . . . . Recycling Units . | . . . . . . . . Scanalyzers . | . . . . . . . . Garrison Access . | . . . . . . . . Data Cores Recovered . | . . . . . . . . Used . | . . . . . . . . Hacking Detections 14 | . 3 1 1 3 . . 6 Full Trace Events . | . . . . . . . . Feedback Events . | . . . . . . . . Feedback Blocked . | . . . . . . . . Robot Schematics Acquired . | . . . . . . . . Robots Built . | . . . . . . . . Authchips . | . . . . . . . . Time . | . . . . . . . . Total Robot Build Rating . | . . . . . . . . Part Schematics Acquired 2 | . . . 2 . . . . Parts Built 2 | . . . . . . . 2 Authchips . | . . . . . . . . Time 47 | . . . . . . . 47 Total Part Build Rating 10 | . . . . . . . 10 Parts Repaired 1 | . . . . . . . 1 Time 62 | . . . . . . . 62 Parts Recycled . | . . . . . . . . Recycled Matter . | . . . . . . . . Retrieved Matter . | . . . . . . . . Retrieved Components . | . . . . . . . . Parts Scanalyzed 2 | . . . 2 . . . . Part Schematics Acquired 2 | . . . 2 . . . . Parts Damaged . | . . . . . . . . Bothacking | -11 -10 -9 -8 -7 -6 -6 -6 ------------ Run | Yrd Mat Mat Mat Fac Fac Was Fac Used RIF Installer . | . . . . . . . . Robots Hacked . | . . . . . . . . Non-combat . | . . . . . . . . Combat . | . . . . . . . . Robot Hacks Applied . | . . . . . . . . Relay Couplers Released . | . . . . . . . . Fabnet Peak Effective % . | . . . . . . . . Robots Rewired . | . . . . . . . . Allies Hacked . | . . . . . . . . Hacks Repelled . | . . . . . . . . Allies | -11 -10 -9 -8 -7 -6 -6 -6 -------- Run | Yrd Mat Mat Mat Fac Fac Was Fac Total Allies . | . . . . . . . . Largest Group . | . . . . . . . . Highest-Rated Group . | . . . . . . . . Highest-Rated Ally . | . . . . . . . . Total Orders . | . . . . . . . . Ally Attacks . | . . . . . . . . Total Damage . | . . . . . . . . Kills . | . . . . . . . . Allies Corrupted . | . . . . . . . . Allies Melted . | . . . . . . . . Intel | -11 -10 -9 -8 -7 -6 -6 -6 ------- Run | Yrd Mat Mat Mat Fac Fac Was Fac Robot Analysis Total . | . . . . . . . . Derelict Logs Recovered . | . . . . . . . . Drone Launches . | . . . . . . . . Drone Recoveries . | . . . . . . . . Exploration | -11 -10 -9 -8 -7 -6 -6 -6 ------------- Run | Yrd Mat Mat Mat Fac Fac Was Fac Turns Passed 5612 | 74 464 341 622 1097 88 903 2023 Spaces Moved 3204 | 60 255 269 221 749 157 572 921 Core 157 | 1 . . . 71 . . 85 Treads 752 | . . . . . . 269 483 Legs . | . . . . . . . . Wheels 1630 | 59 191 269 221 619 . . 271 Hover 526 | . 64 . . . 77 303 82 Flight 139 | . . . . 59 80 . . Fastest Speed 40 | 50 56 95 95 40 40 70 50 Average Speed 108 | 99 88 97 95 99 51 127 127 Slowest Speed 240 | 100 100 100 95 150 70 160 240 Overloaded Moves . | . . . . . . . . Propulsion Burnouts . | . . . . . . . . Robots Hopped . | . . . . . . . . Cave-ins Triggered . | . . . . . . . . Exploration Rate (%) 33 | 3 59 23 29 24 3 97 26 Regions Visited 7 Branch Regions . Pre-discovered Areas . | . . . . . . . . Known Exits Taken 2 | . 1 1 . . . . . Unknown Exits Taken 3 | 1 . . 1 1 . . . Scrap Searched . | . . . . . . . . Spaces Dug . | . . . . . . . . Terrain Destroyed 121 | . . . 3 35 . 1 82 Melee . | . . . . . . . . Projectile 23 | . . . . . . 1 22 AOE 98 | . . . 3 35 . . 60 Terrain Rammed . | . . . . . . . . Walls Destroyed . | . . . . . . . . Machines Disabled . | . . . . . . . . Actions | -11 -10 -9 -8 -7 -6 -6 -6 --------- Run | Yrd Mat Mat Mat Fac Fac Was Fac Total 4923 | 69 469 325 589 962 163 718 1628 Wait 1280 | 2 188 18 330 98 . 77 567 Move 3198 | 59 254 268 220 748 157 571 921 Hop . | . . . . . . . . Pick Up 48 | . 5 5 4 6 1 7 20 Fast Attach 71 | 7 3 6 4 23 3 17 8 Attach 26 | . . 2 1 2 1 1 19 Detach 4 | . 1 . 1 . . 1 1 Swap 24 | . 3 4 1 8 . . 8 Drop 62 | . 4 9 7 16 1 15 10 Fire 173 | 1 11 13 21 52 . 12 63 Melee 9 | . . . . 9 . . . Ram 5 | . . . . . . . 5 Kick . | . . . . . . . . Crush 1 | . . . . . . . 1 Escape Stasis 5 | . . . . . . . 5 Rewire 17 | . . . . . . 17 . Trap . | . . . . . . . . Miscellaneous . | . . . . . . . . Route ------- -11/Scrapyard -10/Materials (discovered 2 exits: *Mat / Min) -9/Materials -8/Materials -7/Factory -6/Factory -6/Waste -6/Factory History --------- Turn | Location | Event 22 | -11/Scrapyard | Discovered new exit (range 16) 75 | -11/Scrapyard | Entered Materials 289 | -10/Materials | Identified exit to Mines 301 | -10/Materials | Build established: Mutant 528 | -10/Materials | Discovered new exit (range 15) 538 | -10/Materials | Identified exit to Materials 539 | -10/Materials | Entered another Materials area 539 | -9/Materials | Evolved 2 slots: Utility x2 611 | -9/Materials | Build established: Scavenger-Mutant 853 | -9/Materials | Discovered new exit (range 4) 880 | -9/Materials | Identified exit to Materials 880 | -9/Materials | Entered another Materials area 880 | -8/Materials | Evolved 2 slots: Propulsion x1, Weapon x1 1031 | -8/Materials | Destroyed 7 combat bots 1228 | -8/Materials | Build established: Scavenger-Tank 1484 | -8/Materials | Discovered new exit (range 15) 1502 | -8/Materials | Entered Factory 1502 | -7/Factory | Evolved 2 slots: Power x1, Utility x1 1597 | -7/Factory | Lost 3 parts (1p1n1u) 2520 | -7/Factory | Garrison activated, responded to threat 2529 | -7/Factory | Core integrity fell below 50% 2532 | -7/Factory | Released all parts (2) 2561 | -7/Factory | Lost 16 parts (3p4n5u4w) 2578 | -7/Factory | Core integrity fell below 20% 2597 | -7/Factory | Discovered new exit (range 5) 2599 | -7/Factory | Entered another Factory area 2599 | -6/Factory | Evolved 2 slots: Propulsion x1, Weapon x1 2687 | -6/Factory | Sucked down chute 2687 | -6/Factory | Entered Waste 2687 | -6/Waste | The area was eerily silent 2905 | -6/Waste | Build established: Hacker-Mutant 2939 | -6/Waste | Discovered new exit (range 13) 2950 | -6/Waste | Found Prototype Slashing Weapon 2950 | -6/Waste | Identified Centrium Greatsword 3187 | -6/Waste | A Compactor rumbled back to life 3187 | -6/Waste | Spotted C-40 Crusher 3323 | -6/Waste | Destroyed C-40 Crusher 3370 | -6/Waste | Build established: Hacker-Tank 3527 | -6/Waste | A Compactor rumbled back to life 3528 | -6/Waste | Spotted C-40 Crusher 3590 | -6/Waste | Entered Factory 3708 | -6/Factory | Repaired Antimatter Reactor 3786 | -6/Factory | Build established: Scavenger-Tank 3812 | -6/Factory | Fabricated Fusion Compressor (x2) 4798 | -6/Factory | Found Prototype Processor 4818 | -6/Factory | Build established: Derelict-Tank 5285 | -6/Factory | Identified Exp. Targeting Computer 5422 | -6/Factory | Core integrity fell below 50% 5502 | -6/Factory | Released all parts (9) 5517 | -6/Factory | Lost 15 parts (3p4n4u4w) 5565 | -6/Factory | Core integrity fell below 20% 5613 | -6/Factory | Destroyed by S-27 Virus with Autogun Last Messages --------------- Purged threat record, alert level lowered. >>Alert(Check) Current Alert Level: Low Security 05575_ Slug penetrates Wall. 05581_ K-01 Serf collects debris. 05582_ Hvy. Flak Cannon destroyed. 05582_ Imp. Gravmag System destroyed. 05583_ Slammed into S-27 Virus. 05585_ Destabilizing: Core damaged (-8). 05587_ R-10 Processor inserts Adv. Heat Sink into recycling unit. 05590_ R-10 Processor inserts Hvy. Plasma Cannon into recycling unit. 05592_ ALERT: Hostiles spotted, dispatching reinforcements to Terminal F015. 05593_ R-10 Processor inserts Hcp. Storage Unit into recycling unit. 05594_ K-01 Serf cleans the Power Conduit. 05599_ R-10 Processor inserts Wheel into recycling unit. Map ----- +----------------------------------------------------+ | #"""" # ?????????????? | | # # ?????????????? | | #"""" ! + """ ???????????????? | | #"""" # "Y?????????????????? | | #"""" # ????????????????? | | #"""" ##### ## """ ???????????????? | | ?"""" #????##? ""??? ???????????????? | | ??""" #???????? ""???????????????????? | | ??""" #????????? ???????????????????? | | ?? #?????????? ??????????????????? | | ??########??????? ? ##?????????????????? | | ????????????????? #??????????????????? | | ????????????????? #??????????????????? | | ????????????????? #??????????????????? | | ?????????????????k #??????????????????? | | ????????????????? +??????????????????? | | ????????????????? #??????????????????? | | ????????????????# #??????????????????? | | ????????????????# #??????????????????? | | ????????????????# #??????????????????? | | ????????????????# t #########??????????? | | ????????????????# ?????????? | | ????????????????# ?????????? | | ????????????????# ????????? | | ????????????????# u ????????? | | ??????###########@ ????????? | | ??????# = # ####???????????????? | | ??????#[ # #??????????????????? | | ??????# #s #??????????????????? | | ??????# """"""" + #??????????????????? | | ??????# """"""" # #??????????????????? | | ??????# """"""" # #??????????????????? | | ??????# """"""" # #??????????????????? | | ??????# # #??????????????????? | | ??????######/####s #??????????????????? | | ?????????# #??????????????????? | | ?????????# #??????????????????? | | ?????????# " " " " #??????????????????? | | ???####### " " " " #??????????????????? | | ???# " " " " #??????????????????? | | ???# ##### " " " " #??????????????????? | | ???# #???# " " " " #??????????????????? | | ####+##### " " " " #??????????????????? | | # # " " " " ###### ????????????? | | # """"" + " " " " /?????????????? | | # ""T"" # " " " " #?????????????? | | # # #?????????????? | | # # #?????????????? | | # # #?????????????? | | # """ # #?????????????? | +----------------------------------------------------+ Best States ------------- Heat Dissipation 94 Energy Generation 37 Energy Capacity 575 Matter Stores 300 Matter Capacity 300 Sight Range 16 Robot Scan Range 14 Terrain Scan Range 16 Terrain Scan Density 10 Armor Coverage 900 Resistance: KI 20 Propulsion Shielding 66 Weapon Cycling 15 Evasion (%) 62 Target Analysis 5 Recoil Reduction 4 Particle Charging 20 Offensive Hacking 22 Item Schematics ----------------- Heat Sink | -8/Materials | Scanalyzed Hpw. Shotgun | -8/Materials | Scanalyzed Robot Schematics ------------------ None Fabricated ------------ Fusion Compressor | x2 | -6/Factory | Preloaded Alien Tech Used ----------------- None Achievements -------------- None Challenges ------------ None Game ------ Seed TripodAssaultAirjet Manual? 0 Play Time 01:14:05 Cumulative 28.2 hours Start 2024.07.09 @ 09:20:19 End 2024.07.09 @ 10:39:27 Sessions 1 Manual Loads 0 Difficulty Rogue Special Mode None Game No. 27 Rogue 27 Adventurer 0 Explorer 0 Win Type - Total 0 Types 0/0/0/0/0/0/0/0/0 Lore% 17 Gallery% 32 Achievement% 23 Wizard Run 0 Options --------- Layout 1 ASCII 0 Keyboard 0 Movement Mouse Keybinds 0 Fullscreen 1 Font 24/Smallcaps Map View 50x35 Zoom Use 0% Tactical HUD 1 Map Filters NONE Filters NONE Steam 1 RUN: 52e863e5-1ff9-48f5-b4ab-d4a73094b0b1